bitfinex-derivatives/quotes_SOLF0:USTF0_20250830
["timestamp","ask_amount","ask_price","bid_price","bid_amount"]
[1756556950432,7.35,201.63,201.52,3.89822487]
[1756556950632,7.35,201.63,201.5,12.2761]
[1756556951030,7.35,201.63,201.5,7.81]
[1756556951236,7.35,201.63,201.51,4.4657]
[1756556953738,7.35,201.63,201.52,4.4655]
[1756556953933,7.35,201.63,201.5,7.81]
[1756556954140,7.35,201.63,201.52,3.89822487]
[1756556954439,7.35,201.63,201.53,7.81]
[1756556955339,7.35,201.63,201.53,12.2753]
[1756556958838,7.35,201.63,201.53,7.81]
[1756556959735,7.35,201.63,201.56,7.81]
[1756556960135,7.35,201.69,201.56,7.81]
[1756556960337,7.35,201.69,201.56,12.2747]
[1756556960835,41.7,201.7,201.56,12.2747]
[1756556961139,7.35,201.69,201.56,7.81]
[1756556963242,7.35,201.69,201.56,12.2746]
[1756556963534,3.89822487,201.57,201.32,5.53778171]
[1756556963739,7.35,201.41,201.32,0.66778171]
[1756556963930,4.45814502,201.4,201.27,7.81]
[1756556964132,4.45814502,201.39,201.28,12.58]
[1756556964332,13.36254135,201.38,201.34,0.66778171]
[1756556964532,13.36254135,201.37,201.27,7.81]
[1756556964841,20.71239666,201.36,201.33,0.66778171]
[1756556965041,9.56426948,201.35,201.33,0.66778171]
[1756556965242,4.45814502,201.34,201.33,0.66778171]
[1756556965638,4.19779393,201.34,201.33,0.66778171]
[1756556965841,8.11485645,201.34,201.33,0.66778171]
[1756556966942,3.91706252,201.34,201.33,0.66778171]
[1756556968043,3.91706252,201.34,201.33,5.62723149]
[1756556969047,3.91706252,201.34,201.33,0.66778171]
[1756556969248,3.91706252,201.34,201.33,5.6222621]
[1756556970153,3.89822487,201.39,201.33,5.6222621]
[1756556970355,7.35,201.37,201.34,4.95448039]
[1756556970551,32.97,201.34,200.96,7.81]
[1756556970749,3.89822487,201.14,201.03,7.81]
[1756556971359,7.02822487,201.17,201.11,0.66778171]
[1756556971552,3.13,201.15,201.12,0.66778171]
[1756556972053,3.13,201.15,201.04,9.18]
[1756556972249,3.13,201.15,201.12,0.66778171]
[1756556972652,3.13,201.15,201.08,10.02]
[1756556972948,3.89822487,201.17,201.12,0.66778171]
[1756556973144,3.87217208,201.16,201.12,0.66778171]
[1756556973345,3.87217208,201.15,201.08,21.92]
[1756556973546,3.13,201.16,201.12,0.66778171]
[1756556973745,3.86451272,201.15,201.07,26.68]
[1756556974047,3.89822487,201.17,201.12,0.66778171]
[1756556974249,3.13,201.15,201.12,0.66778171]
[1756556974446,3.13,201.15,201.03,7.81]
[1756556974651,3.13,201.15,201.12,0.66778171]
[1756556975155,3.13,201.15,201.03,7.81]
[1756556975450,6.98169315,201.14,201.03,7.81]
[1756556975655,3.13,201.16,201.1,0.66778171]
[1756556975855,3.13,201.14,201.1,0.66778171]
[1756556976052,3.13,201.14,201.05,146.66]
[1756556976256,3.13,201.14,201.1,0.66778171]
[1756556976553,3.13,201.16,201.1,0.66778171]
[1756556976745,3.13,201.14,201.1,0.66778171]
[1756556977755,3.15,201.16,201.1,0.66778171]
[1756556977958,3.15,201.14,201.1,0.66778171]
[1756556978156,6.98613178,201.13,201.1,0.66778171]
[1756556978356,3.15,201.13,201.1,0.66778171]
[1756556978553,3.89822487,201.14,201.03,7.81]
[1756556978759,11.20433838,201.13,201.03,7.81]
[1756556978953,3.15,201.11,201.03,7.81]
[1756556979259,3.15,201.09,201.06,0.66778171]
[1756556979454,3.89822487,201.14,201.06,0.66778171]
[1756556979656,15.13377283,201.13,201.07,0.66778171]
[1756556979959,8.08554796,201.12,201.07,0.66778171]
[1756556980159,3.15,201.1,201.03,7.81]
[1756556980355,3.15,201.1,201.07,0.66778171]
[1756556980754,3.15,201.1,201.03,153.69]
[1756556980956,3.15,201.1,201.07,0.66778171]
[1756556981157,3.15,201.17,201.03,153.69]
[1756556981362,3.89822487,201.15,201.03,153.69]
[1756556981662,3.15,201.13,201.1,0.66778171]
[1756556981856,3.86627893,201.12,201.1,0.66778171]
[1756556982056,3.86627893,201.12,201.03,153.69]
[1756556982057,3.86627893,201.11,201.03,153.69]
[1756556982260,3.15,201.13,201.1,0.66778171]
[1756556982459,7.01387523,201.12,201.1,0.66778171]
[1756556982659,3.15,201.12,201.03,7.81]
[1756556982855,3.15,201.14,201.1,0.66778171]
[1756556983055,3.8638748,201.13,201.1,0.66778171]
[1756556983359,7.0138748,201.12,201.05,145.48]
[1756556983558,3.15,201.12,201.1,0.66778171]
[1756556983956,3.15,201.12,201.05,145.48]
[1756556984162,3.15,201.12,201.1,0.66778171]
[1756556984653,3.15,201.12,201.05,145.48]
[1756556984857,3.15,201.12,201.1,0.66778171]
[1756556985257,3.15,201.12,201.04,145.1]
[1756556985452,3.15,201.12,201.1,0.66778171]
[1756556985659,3.15,201.12,201.09,0.66778171]
[1756556985957,3.15,201.2,201.07,7.78]
[1756556986167,3.89822487,201.18,201.07,7.78]
[1756556986366,3.86019143,201.17,201.12,0.66778171]
[1756556986663,3.15,201.15,201.12,0.66778171]
[1756556986864,3.85996266,201.14,201.07,7.78]
[1756556987163,3.15,201.17,201.11,0.66778171]
[1756556987459,3.86003093,201.16,201.11,0.66778171]
[1756556987655,3.86003093,201.15,201.12,0.66778171]
[1756556987859,3.89822487,201.19,201.07,7.78]
[1756556988061,3.15,201.17,201.13,0.66778171]
[1756556988264,3.86022647,201.16,201.13,0.66778171]
[1756556989368,3.86022647,201.16,201.14,0.66778171]
[1756556989562,3.89822487,201.19,201.15,0.66778171]
[1756556989768,3.86226736,201.18,201.15,0.66778171]
[1756556990067,3.86226736,201.17,201.15,0.66778171]
[1756556990366,3.15,201.21,201.15,0.66778171]
[1756556990669,3.15,201.19,201.16,0.66778171]
[1756556990863,3.86388933,201.18,201.16,0.66778171]
[1756556991063,3.86388933,201.17,201.11,7.78]
[1756556991262,3.15,201.19,201.16,0.66778171]
[1756556991462,3.86589438,201.18,201.16,0.66778171]
[1756556991667,3.86589438,201.17,201.11,7.78]
[1756556991866,3.15,201.21,201.16,0.66778171]
[1756556992068,7.0159845,201.2,201.16,0.66778171]
[1756556992267,3.8659845,201.19,201.16,0.66778171]
[1756556992468,3.8659845,201.18,201.16,0.66778171]
[1756556992666,3.8659845,201.17,201.11,7.78]
[1756556992862,3.8659845,201.16,201.07,7.78]
[1756556993071,3.89822487,201.22,201.14,7.78]
[1756556993267,3.87102342,201.21,201.19,0.66778171]
[1756556993570,3.89822487,201.22,201.19,0.66778171]
[1756556993571,3.87102342,201.2,201.19,0.66778171]
[1756556993771,3.87102342,201.21,201.14,73.68]
[1756556993970,3.87102342,201.2,201.19,0.66778171]
[1756556994370,3.87102342,201.2,201.14,73.68]
[1756556994666,3.89822487,201.25,201.19,0.66778171]
[1756556994868,3.15,201.23,201.19,0.66778171]
[1756556995070,6.99030353,201.22,201.19,0.66778171]
[1756556995273,3.84030353,201.21,201.19,0.66778171]
[1756556995573,3.84030353,201.2,201.19,0.66778171]
[1756556996267,3.84030353,201.2,201.14,73.68]
[1756556996268,6.99030353,201.2,201.14,7.78]
[1756556996466,3.84030353,201.19,201.14,7.78]
[1756556996667,3.84030353,201.19,201.13,7.78]
[1756556996868,3.84030353,201.18,201.12,72.12]
[1756556997071,3.15,201.24,201.13,7.78]
[1756556997267,3.84544663,201.23,201.19,0.66778171]
[1756556997470,3.15,201.21,201.19,0.66778171]
[1756556997664,3.84544663,201.2,201.13,7.78]
[1756556997870,3.15,201.24,201.19,0.66778171]
[1756556998071,3.84544663,201.23,201.19,0.66778171]
[1756556998268,3.84544663,201.22,201.13,7.78]
[1756556998572,6.99544663,201.21,201.19,0.66778171]
[1756556998772,2.49,201.18,201.03,7.78]
[1756556998973,3.84544663,201.17,201.05,7.78]
[1756556999173,3.84544663,201.16,201.05,7.78]
[1756556999471,3.84544663,201.15,201.05,150.68]
[1756556999665,3.84544663,201.14,201.05,150.68]
[1756556999866,3.84544663,201.13,201.05,150.68]
[1756557000066,3.84544663,201.12,201.06,142.66]
[1756557000271,3.84544663,201.11,201.03,7.78]
[1756557000575,3.84544663,201.1,201.08,2.44814587]
[1756557000769,2.49,201.18,201.09,7.78]
[1756557000966,3.8392389,201.17,201.09,7.78]
[1756557001171,3.8392389,201.16,201.09,7.78]
[1756557001467,3.8392389,201.15,201.09,7.78]
[1756557001668,3.8392389,201.14,201.09,7.78]
[1756557001865,2.49,201.18,201.08,2.44814587]
[1756557002070,3.81727781,201.17,201.09,150.3]
[1756557002275,3.81727781,201.16,201.09,150.24]
[1756557002468,3.81727781,201.15,201.09,150.24]
[1756557002669,3.81727781,201.14,201.1,7.78]
[1756557002866,3.81727781,201.13,201.1,7.78]
[1756557003175,3.8282339,201.12,201.09,142.46]
[1756557003374,2.49,201.18,201.1,7.78]
[1756557003671,3.82832385,201.17,201.1,7.78]
[1756557003882,3.82832385,201.16,201.1,150.02]
[1756557004176,3.82832385,201.15,201.11,7.78]
[1756557004373,3.82832385,201.14,201.1,142.24]
[1756557004573,3.82832385,201.13,201.1,142.24]
[1756557004873,2.49,201.18,201.11,7.78]
[1756557005170,3.76659692,201.17,201.11,7.78]
[1756557005376,3.76659692,201.16,201.1,150.02]
[1756557005573,3.76659692,201.15,201.11,7.78]
[1756557005876,3.76659692,201.14,201.1,142.24]
[1756557006076,3.76659692,201.13,201.1,142.24]
[1756557006273,5.52824853,201.21,201.12,7.78]
[1756557006477,2.49,201.22,201.12,7.78]
[1756557006879,2.49,201.22,201.14,2.44814587]
[1756557007283,6.2,201.2,201.03,7.51]
[1756557007579,8.64814587,201.18,201.08,7.51]
[1756557007782,2.38268676,201.17,201.08,7.51]
[1756557007983,6.2,201.14,201.05,125.54]
[1756557008177,5.52824853,201.19,201.08,7.51]
[1756557008383,2.38322497,201.18,201.08,7.51]
[1756557008582,2.38322497,201.17,201.08,7.51]
[1756557008786,8.64814587,201.2,201.09,130.44]
[1756557008787,2.38322497,201.16,201.09,130.44]
[1756557009080,2.38322497,201.15,201.08,7.51]
[1756557009281,2.38322497,201.14,201.08,7.51]
[1756557009583,2.38322497,201.13,201.04,141.82]
[1756557009783,2.38322497,201.12,201.05,7.51]
[1756557009983,2.38322497,201.11,201.05,7.51]
[1756557010184,6.2,201.14,201.05,7.51]
[1756557010385,2.39368138,201.13,201.05,7.51]
[1756557010584,2.39368138,201.12,201.05,7.51]
[1756557010785,2.39368138,201.11,201.05,7.51]
[1756557010986,6.2,201.14,201.05,7.51]
[1756557011186,2.39529638,201.13,201.05,7.51]
[1756557011378,2.39529638,201.12,201.05,7.51]
[1756557011583,2.39529638,201.11,201.05,7.51]
[1756557011783,2.39529638,201.1,201.05,7.51]
[1756557011986,6.2,201.14,201.05,7.51]
[1756557012278,2.39732854,201.13,201.05,7.51]
[1756557012476,6.2,201.14,201.05,7.51]
[1756557012681,6.2,201.14,201.06,141.36]
[1756557012885,2.39984208,201.13,201.06,141.34]
[1756557013084,2.39984208,201.12,201.07,7.51]
[1756557013287,2.39984208,201.11,201.07,7.51]
[1756557013585,2.39984208,201.1,201.06,141.34]
[1756557013780,2.39984208,201.09,201.02,333.74]
[1756557013983,2.39984208,201.08,201.04,7.51]
[1756557014184,6.2,201.14,201.04,7.51]
[1756557014378,5.97351675,201.13,201.04,7.51]
[1756557014576,5.97351675,201.12,201.04,7.51]
[1756557014779,2.40273322,201.11,201.05,141.18]
[1756557014978,2.40273322,201.1,201.06,7.51]
[1756557015188,2.40273322,201.09,201.05,141.18]
[1756557015481,2.40273322,201.08,201.06,7.51]
[1756557015684,8.60273322,201.07,201.02,333.74]
[1756557015880,2.40273322,201.06,201.02,333.74]
[1756557016084,2.40273322,201.05,201.02,333.74]
[1756557016285,2.40273322,201.04,201.02,333.74]
[1756557016487,2.40273322,201.03,201.02,341.25]
[1756557016690,2.40273322,201.03,200.92,7.51]
[1756557016987,2.40273322,201.02,200.93,148.43]
[1756557017184,2.40273322,201.01,200.93,148.43]
[1756557017389,2.40273322,201.0,200.93,7.51]
[1756557017583,2.40273322,200.99,200.94,7.51]
[1756557017787,2.40273322,200.98,200.94,148.37]
[1756557017987,6.2,200.96,200.84,7.51]
[1756557018190,3.91732452,201.0,200.85,24.64]
[1756557018191,6.2,200.94,200.85,24.64]
[1756557018391,5.91984787,200.93,200.85,24.64]
[1756557018691,12.11984787,200.92,200.85,24.64]
[1756557018889,12.11984787,200.92,200.85,55.3]
[1756557019090,12.11984787,200.92,200.79,7.51]
[1756557019287,12.11984787,200.92,200.91,20.25546415]
[1756557020085,12.61984787,200.92,200.74,7.51]
[1756557020291,25.22,201.01,200.74,10.27]
[1756557020292,3.91732452,200.88,200.74,10.27]
[1756557020495,5.91984787,200.87,200.74,10.27]
[1756557020795,5.91984787,200.86,200.74,7.51]
[1756557020997,9.47946835,200.85,200.56,7.51]
[1756557021188,3.91732452,200.83,200.66,7.51]
[1756557021386,3.91732452,200.8,200.68,7.51]
[1756557021986,3.91732452,200.77,200.61,7.51]
[1756557022192,3.91732452,200.78,200.61,7.51]
[1756557022497,3.95732452,200.78,200.63,7.51]
[1756557022693,0.04,200.78,200.65,7.51]
[1756557023096,0.04,200.78,200.64,3.91732452]
[1756557023097,3.91732452,200.77,200.59,7.51]
[1756557023393,3.91732452,200.74,200.61,7.51]
[1756557023591,3.95732452,200.74,200.61,7.51]
[1756557023994,7.43732452,200.88,200.53,7.51]
[1756557023995,3.91732452,200.68,200.53,7.51]
[1756557024194,3.91732452,200.65,200.53,7.51]
[1756557024693,3.91732452,200.65,200.53,149.35]
[1756557024899,3.91732452,200.65,200.53,7.51]
[1756557025101,3.95732452,200.62,200.45,7.51]
[1756557025302,3.95732452,200.62,200.48,7.51]
[1756557025492,3.91732452,200.59,200.48,7.51]
[1756557025797,3.91732452,200.61,200.48,7.51]
[1756557026004,3.91732452,200.64,200.49,3.91732452]
[1756557026198,0.04,200.67,200.53,7.51]
[1756557026503,0.04,200.67,200.54,3.91732452]
[1756557027000,0.04,200.67,200.53,11.42732452]
[1756557027195,3.91732452,200.72,200.57,7.51]
[1756557027394,0.04,200.82,200.66,3.91732452]
[1756557027596,0.04,200.82,200.64,7.51]
[1756557027597,0.04,200.82,200.69,3.91732452]
[1756557027995,0.04,200.82,200.72,3.91732452]
[1756557028197,0.04,200.89,200.72,3.91732452]
[1756557028798,0.04,200.89,200.77,3.91732452]
[1756557029098,334.56,200.91,200.67,3.91732452]
[1756557029099,0.04,200.83,200.67,3.91732452]
[1756557029298,3.91732452,200.85,200.65,7.51]
[1756557029299,0.04,200.81,200.65,7.51]
[1756557030302,0.04,200.79,200.65,7.51]
[1756557032106,6.38917948,200.8,200.65,7.51]
[1756557032407,0.04,200.75,200.56,7.51]
[1756557032706,6.38917948,200.74,200.56,7.51]
[1756557032906,0.04,200.73,200.56,7.51]
[1756557033712,0.04,200.69,200.56,7.51]
[1756557034899,6.38917948,200.73,200.56,7.51]
[1756557035699,0.04,200.74,200.61,6.38917948]
[1756557035898,334.68,200.77,200.62,7.51]
[1756557036506,0.04,200.79,200.62,7.51]
[1756557037508,6.38917948,200.77,200.62,7.51]
[1756557038307,6.06,200.76,200.62,7.51]
[1756557038607,6.38917948,200.73,200.62,7.51]
[1756557038998,6.38917948,200.73,200.54,334.62]
[1756557039203,6.38917948,200.73,200.55,7.86]
[1756557039599,4.68,200.72,200.55,7.86]
[1756557039811,6.38917948,200.73,200.55,7.86]
[1756557042409,6.38917948,200.69,200.55,7.86]
[1756557044705,6.38917948,200.65,200.55,7.86]
[1756557045112,132.82,200.68,200.55,7.86]
[1756557045307,142.0,200.67,200.55,7.86]
[1756557045503,6.38917948,200.65,200.46,7.86]
[1756557045907,96.98,200.64,200.46,7.86]
[1756557046315,38.34,200.63,200.46,7.86]
[1756557046712,27.8,200.64,200.46,7.86]
[1756557046911,6.38917948,200.65,200.46,7.86]
[1756557047215,9.46,200.64,200.46,7.86]
[1756557047409,6.38917948,200.65,200.46,6.38917948]
[1756557047605,6.38917948,200.65,200.47,7.86]
[1756557052518,6.38917948,200.61,200.43,7.86]
[1756557054314,138.66250047,200.67,200.43,7.86]
[1756557054315,6.38917948,200.57,200.43,7.86]
[1756557054511,26.36,200.56,200.43,7.86]
[1756557054713,6.38917948,200.53,200.34,7.86]
[1756557055624,148.64917948,200.53,200.34,7.86]
[1756557055819,6.38917948,200.53,200.34,7.86]
[1756557056917,6.38917948,200.49,200.34,7.86]
[1756557057322,6.38917948,200.51,200.34,7.86]
[1756557057919,6.38917948,200.55,200.37,7.86]
[1756557060118,6.38917948,200.55,200.38,6.38917948]
[1756557060328,6.38917948,200.59,200.39,7.86]
[1756557060619,6.38917948,200.59,200.41,7.86]
[1756557061026,6.38917948,200.65,200.46,6.38917948]
[1756557061319,6.38917948,200.65,200.47,7.86]
[1756557062225,5.83920692,200.64,200.47,7.86]
[1756557062417,108.82250047,200.67,200.47,7.86]
[1756557062618,5.83998419,200.66,200.47,7.86]
[1756557062820,5.83998419,200.65,200.55,0.03510435]
[1756557063023,0.03738762,200.59,200.55,7.89510435]
[1756557063219,0.03738762,200.59,200.56,7.86]
[1756557063825,0.03738762,200.59,200.55,0.03510435]
[1756557064422,0.03738762,200.59,200.55,7.89510435]
[1756557064823,0.03738762,200.59,200.56,7.86]
[1756557065022,0.03738762,200.59,200.55,0.03510435]
[1756557065427,0.03738762,200.59,200.56,7.86]
[1756557066026,2.40327703,200.58,200.55,0.03510435]
[1756557066229,5.86587696,200.57,200.55,0.03510435]
[1756557066429,5.86716949,200.56,200.55,0.03510435]
[1756557066625,9.51380087,200.56,200.55,0.03510435]
[1756557066820,16.40298035,200.56,200.46,7.86]
[1756557067025,9.51380087,200.55,200.46,7.86]
[1756557067225,9.51380087,200.54,200.46,7.86]
[1756557067427,0.04,200.59,200.46,7.86]
[1756557067725,6.38917948,200.56,200.46,7.86]
[1756557067931,6.38917948,200.56,200.38,7.39]
[1756557067932,0.04,200.54,200.38,7.39]
[1756557068127,6.42917948,200.52,200.38,7.39]
[1756557068322,0.04,200.5,200.38,7.39]
[1756557068526,9.51879118,200.49,200.38,7.39]
[1756557068729,0.03443373,200.47,200.38,7.39]
[1756557068930,9.51879118,200.46,200.38,7.39]
[1756557069130,9.51879118,200.45,200.32,7.39]
[1756557069327,5.87034393,200.44,200.32,7.39]
[1756557069533,2.40508642,200.43,200.32,7.39]
[1756557069728,6.42917948,200.48,200.32,7.39]
[1756557069931,0.03546403,200.4,200.32,7.39]
[1756557070732,2.39899478,200.39,200.32,7.39]
[1756557070929,0.03546403,200.4,200.32,7.39]
[1756557071333,2.39672913,200.39,200.24,7.39]
[1756557071634,5.82358247,200.38,200.24,7.39]
[1756557071836,2.39672913,200.37,200.24,7.39]
[1756557072135,5.52824853,200.46,200.22,139.72917948]
[1756557072136,0.04,200.45,200.27,7.39]
[1756557072338,9.45636856,200.44,200.27,7.39]
[1756557072531,9.45636856,200.43,200.27,7.39]
[1756557072730,5.8220429,200.42,200.27,7.39]
[1756557072932,5.89981388,200.41,200.27,7.39]
[1756557073132,2.39517351,200.4,200.27,7.39]
[1756557073437,2.39479914,200.39,200.27,7.39]
[1756557073634,0.08,200.41,200.27,7.39]
[1756557073842,9.45195464,200.4,200.27,7.39]
[1756557074138,5.81851082,200.39,200.27,7.39]
[1756557074338,2.3947098,200.38,200.27,7.39]
[1756557074635,2.39428313,200.37,200.27,7.39]
[1756557074838,0.08,200.41,200.27,7.39]
[1756557075033,2.39438349,200.4,200.27,7.39]
[1756557075233,6.46917948,200.38,200.27,7.39]
[1756557075430,0.08,200.38,200.27,7.39]
[1756557075627,2.39065361,200.37,200.27,7.39]
[1756557075832,2.39065361,200.36,200.27,7.39]
[1756557076037,0.08,200.38,200.27,7.39]
[1756557076238,6.46917948,200.42,200.27,7.39]
[1756557076438,2.3903597,200.41,200.27,7.39]
[1756557076640,6.46917948,200.42,200.27,7.39]
[1756557076841,2.39022742,200.41,200.27,7.39]
[1756557077035,0.08,200.47,200.27,7.39]
[1756557077344,0.08,200.47,200.31,7.39]
[1756557077345,2.39126782,200.46,200.31,7.39]
[1756557077543,0.08,200.47,200.31,7.39]
[1756557078037,335.26,200.55,200.31,7.39]
[1756557078253,6.38917948,200.52,200.33,7.39]
[1756557078454,2.39113686,200.51,200.33,7.39]
[1756557078754,6.46917948,200.5,200.33,7.39]
[1756557078955,0.08,200.56,200.36,7.39]
[1756557079255,2.39203598,200.55,200.36,7.39]
[1756557079446,8.78121546,200.54,200.36,7.39]
[1756557079644,2.39205972,200.53,200.36,7.39]
[1756557079845,2.39205972,200.53,200.33,6.38917948]
[1756557079846,6.38917948,200.54,200.37,6.38917948]
[1756557080048,2.47209759,200.53,200.38,7.39]
[1756557080243,2.39209759,200.52,200.38,7.39]
[1756557080646,2.39209759,200.52,200.38,13.77917948]
[1756557080845,0.08,200.53,200.39,7.39]
[1756557081453,2.39383592,200.52,200.39,7.39]
[1756557081650,0.08,200.53,200.39,7.39]
[1756557081850,2.39383272,200.52,200.39,7.39]
[1756557082046,0.08,200.47,200.31,7.39]
[1756557082446,2.39450085,200.46,200.31,7.39]
[1756557082650,0.08,200.47,200.31,7.39]
[1756557084058,2.39503999,200.46,200.31,69.17]
[1756557084249,2.39503999,200.45,200.32,7.39]
[1756557084453,0.08,200.47,200.32,7.39]
[1756557084655,2.39568106,200.46,200.32,7.39]
[1756557084854,0.08,200.47,200.32,7.39]
[1756557085251,2.39625605,200.46,200.32,7.39]
[1756557085455,0.08,200.47,200.32,7.39]
[1756557085653,2.39639269,200.46,200.32,7.39]
[1756557085850,0.08,200.47,200.32,7.39]
[1756557086160,0.08,200.45,200.32,7.39]
[1756557086361,2.39598125,200.44,200.32,7.39]
[1756557086555,0.08,200.43,200.32,7.39]
[1756557086860,2.39598125,200.42,200.28,7.39]
[1756557088059,125.92516073,200.42,200.28,7.39]
[1756557088259,2.47598125,200.41,200.28,7.39]
[1756557088455,0.08,200.37,200.21,7.39]
[1756557088764,2.39598125,200.36,200.21,7.39]
[1756557088962,0.08,200.34,200.21,7.39]
[1756557089860,0.08,200.4,200.22,7.39]
[1756557090063,0.08,200.38,200.22,7.39]
[1756557090363,2.39421009,200.37,200.22,7.39]
[1756557090565,0.08,200.38,200.22,7.39]
[1756557090764,2.39376248,200.37,200.22,7.39]
[1756557090962,0.08,200.38,200.22,7.39]
[1756557092553,2.39296459,200.37,200.22,7.39]
[1756557092752,0.08,200.38,200.22,7.39]
[1756557093064,2.39312892,200.37,200.22,7.39]
[1756557093261,0.08,200.38,200.22,7.39]
[1756557093558,2.39281457,200.37,200.22,7.39]
[1756557093761,0.08,200.38,200.22,7.39]
[1756557093958,2.39281484,200.37,200.22,7.39]
[1756557094157,0.08,200.38,200.22,7.39]
[1756557094365,2.39281997,200.37,200.22,7.39]
[1756557094556,0.08,200.38,200.22,7.39]
[1756557094757,2.39279461,200.37,200.22,7.39]
[1756557094958,6.46917948,200.38,200.22,7.39]
[1756557095163,2.39281794,200.37,200.22,7.39]
[1756557095363,0.08,200.37,200.22,7.39]
[1756557095663,2.39276813,200.36,200.22,7.39]
[1756557095864,2.39276813,200.35,200.22,7.39]
[1756557096364,2.47277402,200.34,200.22,7.39]
[1756557096555,0.08,200.34,200.22,7.39]
[1756557097156,0.09,200.32,200.14,7.5]
[1756557097362,2.39229247,200.31,200.14,7.5]
[1756557097561,0.09,200.32,200.14,7.5]
[1756557097862,2.39224301,200.31,200.16,7.5]
[1756557098058,0.09,200.32,200.16,7.5]
[1756557098259,2.39156317,200.31,200.16,7.5]
[1756557098457,0.09,200.32,200.16,7.5]
[1756557098662,2.39156235,200.31,200.16,7.5]
[1756557098862,0.09,200.32,200.16,7.5]
[1756557099061,2.39156361,200.31,200.16,7.5]
[1756557099262,0.09,200.32,200.16,7.5]
[1756557099562,2.39070337,200.31,200.16,7.5]
[1756557099861,0.12,200.3,200.16,7.5]
[1756557101664,0.12,200.35,200.2,3.95044106]
[1756557101866,0.12,200.35,200.21,7.5]
[1756557102356,3.95044106,200.33,200.21,7.5]
[1756557102558,2.50804802,200.32,200.21,7.5]
[1756557102762,0.12,200.3,200.04,7.5]
[1756557102961,0.12,200.22,200.07,7.5]
[1756557103967,0.12,200.29,200.1,7.5]
[1756557104164,4.07044106,200.29,200.13,7.5]
[1756557104359,3.95044106,200.28,200.13,7.5]
[1756557104561,0.12,200.29,200.13,7.5]
[1756557104765,3.95044106,200.31,200.15,7.5]
[1756557105162,0.12,200.3,200.15,7.5]
[1756557105362,3.95044106,200.31,200.15,7.5]
[1756557105363,6.42118629,200.31,200.15,7.5]
[1756557105668,2.50516812,200.3,200.15,7.5]
[1756557105866,0.12,200.3,200.15,7.5]
[1756557107267,0.12,200.28,200.15,7.5]
[1756557107462,2.38669691,200.27,200.15,7.5]
[1756557107666,6.42118629,200.29,200.15,7.5]
[1756557107870,0.12,200.27,200.15,7.5]
[1756557110177,2.39180389,200.26,200.15,7.5]
[1756557110473,0.12,200.27,200.15,7.5]
[1756557110673,2.39180257,200.26,200.15,7.5]
[1756557110876,0.12,200.27,200.15,7.5]
[1756557111177,2.39180257,200.26,200.15,7.5]
[1756557111478,0.12,200.27,200.15,7.5]
[1756557111665,0.12,200.34,200.15,13.92118629]
[1756557111870,2.39448795,200.33,200.16,7.5]
[1756557112076,2.39448795,200.32,200.16,7.5]
[1756557112276,2.39448795,200.31,200.16,7.5]
[1756557112477,0.12,200.34,200.16,7.5]
[1756557112676,3.58,200.4,200.16,7.5]
[1756557112677,2.39578394,200.33,200.16,7.5]
[1756557112973,6.54118629,200.37,200.16,7.5]
[1756557113167,2.39644005,200.36,200.16,7.5]
[1756557113372,2.39644005,200.35,200.18,6.42118629]